bitfinex/quotes_SOLUSD_20250522
["timestamp","ask_amount","ask_price","bid_price","bid_amount"]
[1747888462888,22.47680048,176.47,176.42,22.47680048]
[1747888463092,39.68708343,176.46,176.42,22.47680048]
[1747888463603,62.16388391,176.46,176.41,22.47680048]
[1747888464385,28.14388391,176.46,176.41,22.47680048]
[1747888464586,34.02,176.45,176.41,22.47680048]
[1747888465387,39.68747477,176.45,176.41,22.47680048]
[1747888466302,34.02,176.45,176.41,22.47680048]
[1747888467320,34.0,176.45,176.42,22.47680048]
[1747888467714,34.0,176.45,176.42,14.25176816]
[1747888469635,34.0,176.45,176.41,14.25176816]
[1747888471826,39.66735635,176.45,176.41,14.25176816]
[1747888472198,34.0,176.45,176.41,14.25176816]
[1747888472422,34.0,176.45,176.4,19.92066745]
[1747888475027,170.9,176.47,176.43,14.25176816]
[1747888475194,136.9,176.47,176.44,14.25176816]
[1747888478433,59.98027135,176.49,176.44,14.25176816]
[1747888478632,65.64646424,176.49,176.44,14.25176816]
[1747888479145,14.25176816,176.45,176.36,1.6111]
[1747888479443,34.0,176.44,176.41,14.25176816]
[1747888479684,34.0,176.44,176.43,14.25176816]
[1747888479808,34.0,176.47,176.43,14.25176816]
[1747888480006,34.0,176.47,176.44,14.25176816]
[1747888482329,53.91856615,176.47,176.41,14.25176816]
[1747888482535,53.91856615,176.47,176.42,14.25176816]
[1747888482721,39.66679799,176.47,176.43,26.0]
[1747888483333,39.66679799,176.47,176.42,14.25176816]
[1747888483542,53.91856615,176.47,176.42,14.25176816]
[1747888483748,39.66679799,176.47,176.43,26.0]
[1747888483947,39.66679799,176.47,176.43,40.25176816]
[1747888484248,34.0,176.47,176.44,14.25176816]
[1747888484424,39.6667454,176.47,176.43,40.25176816]
[1747888485350,34.0,176.47,176.43,40.25176816]
[1747888485646,11.72850319,176.49,176.46,14.25176816]
[1747888485819,11.72850319,176.49,176.45,14.25176816]
[1747888486135,14.25176816,176.5,176.45,14.25176816]
[1747888486825,5.66586087,176.5,176.45,14.25176816]
[1747888487846,5.66586087,176.5,176.44,14.25176816]
[1747888487847,19.91762903,176.5,176.44,14.25176816]
[1747888488418,14.25176816,176.49,176.44,14.25176816]
[1747888489522,19.91762903,176.5,176.44,14.25176816]
[1747888490745,5.66586087,176.5,176.46,26.0]
[1747888491043,39.66586087,176.5,176.46,26.0]
[1747888493044,53.91762903,176.5,176.46,26.0]
[1747888493546,53.91762903,176.5,176.44,40.25176816]
[1747888496426,53.91762903,176.5,176.45,14.25176816]
[1747888497226,53.91762903,176.5,176.44,40.25176816]
[1747888497626,39.66586087,176.5,176.45,14.25176816]
[1747888498043,53.91762903,176.5,176.45,14.25176816]
[1747888500453,14.25176816,176.49,176.44,14.25176816]
[1747888500647,14.25176816,176.49,176.45,26.0]
[1747888500957,14.25176816,176.47,176.42,14.25176816]
[1747888501130,34.0,176.46,176.42,14.25176816]
[1747888501641,34.0,176.46,176.44,14.25176816]
[1747888501835,170.9,176.49,176.44,14.25176816]
[1747888502043,14.25176816,176.53,176.47,14.25176816]
[1747888502246,14.25176816,176.53,176.48,14.25176816]
[1747888502443,185.15176816,176.54,176.48,14.25176816]
[1747888503034,190.81624183,176.54,176.48,14.25176816]
[1747888503232,190.81624183,176.54,176.47,26.0]
[1747888503233,14.25176816,176.52,176.46,40.25176816]
[1747888503553,14.25176816,176.51,176.46,26.0]
[1747888504051,14.25176816,176.51,176.46,40.25176816]
[1747888504252,19.91720793,176.51,176.46,40.25176816]
[1747888504553,19.91720793,176.51,176.46,26.0]
[1747888505056,14.25176816,176.5,176.46,26.0]
[1747888505353,14.25176816,176.5,176.45,40.25176816]
[1747888505553,14.25176816,176.51,176.46,14.25176816]
[1747888507065,14.25176816,176.5,176.46,26.0]
[1747888508061,14.25176816,176.5,176.43,1.6593]
[1747888508263,14.25176816,176.47,176.42,14.25176816]
[1747888508465,14.25176816,176.47,176.43,26.0]
[1747888509866,48.25176816,176.48,176.43,40.25176816]
[1747888510049,136.9,176.5,176.46,19.9187191]
[1747888510246,34.0,176.51,176.47,14.25176816]
[1747888511059,34.0,176.51,176.47,40.25176816]
[1747888511266,34.0,176.53,176.48,14.25176816]
[1747888511759,48.25176816,176.54,176.49,14.25176816]
[1747888512063,14.25176816,176.53,176.48,14.25176816]
[1747888512964,19.91665761,176.53,176.47,40.25176816]
[1747888513753,53.91665761,176.53,176.47,40.25176816]
[1747888514355,53.91665761,176.53,176.47,26.0]
[1747888514561,53.91665761,176.53,176.47,40.25176816]
[1747888516565,53.91665761,176.53,176.48,14.25176816]
[1747888517963,53.91665761,176.53,176.47,40.25176816]
[1747888520251,53.91665761,176.53,176.48,14.25176816]
[1747888521267,48.25176816,176.53,176.48,14.25176816]
[1747888521484,136.9,176.55,176.5,26.0]
[1747888521775,5.66443865,176.54,176.5,26.0]
[1747888521975,19.91620681,176.54,176.5,26.0]
[1747888522757,5.66443865,176.54,176.5,26.0]
[1747888522955,19.91597854,176.55,176.5,40.25176816]
[1747888523556,19.91597854,176.55,176.5,26.0]
[1747888524370,14.25176816,176.54,176.5,26.0]
[1747888526005,5.66475953,176.53,176.5,26.0]
[1747888526596,5.66447154,176.54,176.5,26.0]
[1747888527213,14.25176816,176.55,176.5,26.0]
[1747888527214,19.9159398,176.55,176.5,26.0]
[1747888527405,5.66417164,176.55,176.5,40.25176816]
[1747888529490,19.9159398,176.55,176.5,26.0]
[1747888529910,14.25176816,176.54,176.5,26.0]
[1747888530512,19.91641187,176.54,176.5,26.0]
[1747888531312,14.25176816,176.53,176.5,26.0]
[1747888532014,19.91641187,176.54,176.5,26.0]
[1747888532193,147.66612023,176.56,176.51,14.25176816]
[1747888532392,10.76612023,176.56,176.51,14.25176816]
[1747888532600,10.76612023,176.56,176.52,14.25176816]
[1747888533907,16.4299781,176.56,176.51,14.25176816]
[1747888534624,30.68174626,176.56,176.5,40.25176816]
[1747888534794,16.4299781,176.56,176.5,26.0]
[1747888535106,14.25176816,176.54,176.5,26.0]
[1747888535993,48.23176816,176.54,176.5,26.0]
[1747888536524,5.66475953,176.53,176.5,26.0]
[1747888537322,53.89626986,176.54,176.5,26.0]
[1747888537521,39.6445017,176.54,176.5,26.0]
[1747888538621,53.89626986,176.54,176.5,26.0]
[1747888540723,19.91747366,176.51,176.45,14.25176816]
[1747888540907,19.91747366,176.51,176.48,26.0]
[1747888542124,5.6657055,176.51,176.48,26.0]
[1747888542437,14.25176816,176.52,176.48,26.0]
[1747888542638,5.66475953,176.53,176.48,40.25176816]
[1747888542803,136.9,176.55,176.51,14.25176816]
[1747888543006,14.25176816,176.54,176.5,26.0]
[1747888543534,14.25176816,176.52,176.5,26.0]
[1747888543722,14.25176816,176.52,176.47,14.25176816]
[1747888543923,19.91693567,176.52,176.48,26.0]
[1747888545607,19.91693567,176.52,176.47,26.0]
[1747888547546,19.91693567,176.52,176.47,40.25176816]
[1747888547925,19.91693567,176.52,176.48,14.25176816]
[1747888549831,136.9,176.55,176.48,14.25176816]
[1747888550046,151.15176816,176.55,176.5,14.25176816]
[1747888550215,33.98,176.54,176.5,14.25176816]
[1747888550537,170.9,176.55,176.51,14.25176816]
[1747888550712,176.56421031,176.55,176.51,14.25176816]
[1747888551425,190.81597847,176.55,176.5,14.25176816]
[1747888552234,176.56421031,176.55,176.51,14.25176816]
[1747888552413,190.81597847,176.55,176.5,14.25176816]
[1747888553250,176.56421031,176.55,176.5,14.25176816]
[1747888553440,136.9,176.55,176.53,14.25176816]
[1747888553625,10.76612023,176.56,176.54,14.25176816]
[1747888556152,30.68191318,176.56,176.51,26.0]
[1747888556345,30.68191318,176.56,176.51,40.25176816]
[1747888556658,30.68191318,176.56,176.53,26.0]
[1747888556959,25.01788839,176.56,176.53,26.0]
[1747888557657,25.01788839,176.56,176.51,26.0]
[1747888557658,14.25176816,176.55,176.51,26.0]
[1747888557841,16.43002696,176.56,176.51,26.0]
[1747888558160,16.43002696,176.56,176.51,40.25176816]
[1747888558471,30.68179512,176.56,176.51,26.0]
[1747888558661,30.68179512,176.56,176.51,40.25176816]
[1747888559342,10.76612023,176.56,176.52,14.25176816]
[1747888559554,16.42991805,176.56,176.52,14.25176816]
[1747888559950,30.68168621,176.56,176.51,40.25176816]
[1747888560660,30.68168621,176.56,176.51,26.0]
[1747888561266,30.68168621,176.56,176.51,40.25176816]
[1747888562274,10.76612023,176.56,176.52,14.25176816]
[1747888563785,10.76612023,176.56,176.54,14.25176816]
[1747888563961,10.76612023,176.56,176.54,26.0]
[1747888564158,16.42994187,176.56,176.54,26.0]
[1747888564470,16.42994187,176.56,176.52,40.25176816]
[1747888566474,30.68171003,176.56,176.5,26.0]
[1747888566667,14.25176816,176.54,176.51,26.0]
[1747888566979,33.98,176.53,176.51,26.0]
[1747888567185,33.98,176.53,176.51,14.25176816]
[1747888567367,44.74612023,176.56,176.52,14.25176816]
[1747888567572,44.74612023,176.56,176.53,40.25176816]
[1747888567879,44.74612023,176.56,176.54,14.25176816]
[1747888568074,44.74612023,176.56,176.53,40.25176816]
[1747888568558,50.41003172,176.56,176.5,26.0]
[1747888568757,50.41003172,176.56,176.52,14.25176816]
[1747888569883,64.66179988,176.56,176.48,26.0]
[1747888570092,64.66179988,176.56,176.49,14.25176816]
[1747888570093,14.25176816,176.55,176.49,14.25176816]
[1747888570687,50.41003172,176.56,176.49,14.25176816]
[1747888570901,64.66179988,176.56,176.5,14.25176816]
[1747888571059,50.41003172,176.56,176.52,14.25176816]
[1747888572288,64.66179988,176.56,176.48,26.0]
[1747888572592,50.41003172,176.56,176.52,14.25176816]
[1747888572769,44.74612023,176.56,176.52,14.25176816]
[1747888573158,50.41005151,176.56,176.52,14.25176816]
[1747888573590,44.74612023,176.56,176.52,14.25176816]
[1747888573773,44.74612023,176.56,176.54,14.25176816]
[1747888573987,10.76612023,176.56,176.55,14.25176816]
[1747888576188,14.25176816,176.59,176.53,14.25176816]
[1747888576389,14.25176816,176.58,176.52,15.90426816]
[1747888576584,5.66347624,176.57,176.53,26.0]
[1747888576792,39.64347624,176.57,176.54,26.0]
[1747888576986,53.8952444,176.57,176.54,26.0]
[1747888577967,14.25176816,176.56,176.51,14.25176816]
[1747888578289,14.25176816,176.56,176.5,14.25176816]
[1747888578493,5.66475953,176.53,176.48,1.6288]
[1747888578698,39.64475953,176.53,176.49,26.0]
[1747888578886,53.89652769,176.53,176.46,4.50440425]
[1747888579067,53.89652769,176.53,176.47,14.25176816]
[1747888579485,53.89652769,176.53,176.48,26.0]
[1747888579665,14.25176816,176.51,176.44,1.6069]
[1747888580097,14.25176816,176.5,176.45,14.25176816]
[1747888580271,14.25176816,176.51,176.45,14.25176816]
[1747888580471,5.66572237,176.5,176.47,26.0]
[1747888580691,33.98,176.53,176.48,14.25176816]
[1747888581011,33.98,176.53,176.49,14.25176816]
[1747888581201,5.66443865,176.54,176.49,14.25176816]
[1747888581496,33.98,176.53,176.48,14.25176816]
[1747888581695,48.23176816,176.53,176.48,14.25176816]
[1747888582392,19.9168486,176.52,176.47,26.0]
[1747888582695,19.9168486,176.52,176.47,40.25176816]
[1747888583069,5.66508044,176.52,176.47,40.25176816]
[1747888583591,5.66508044,176.52,176.48,14.25176816]
[1747888584879,5.66508044,176.52,176.49,14.25176816]
[1747888585795,39.64480457,176.53,176.5,14.25176816]
[1747888585978,14.15902168,176.57,176.52,14.25176816]
[1747888586183,33.98,176.55,176.53,14.25176816]
[1747888586492,33.98,176.55,176.52,14.25176816]
[1747888588095,53.80328952,176.56,176.52,14.25176816]
[1747888588303,53.80328952,176.56,176.51,14.25176816]
[1747888588601,53.80328952,176.56,176.52,14.25176816]
[1747888591196,53.80328952,176.56,176.5,26.0]
[1747888591505,53.80328952,176.56,176.52,14.25176816]
[1747888591806,68.05505768,176.56,176.5,26.0]
[1747888591989,68.05505768,176.56,176.5,40.25176816]
[1747888592192,68.05505768,176.56,176.51,14.25176816]
[1747888592705,68.05505768,176.56,176.52,14.25176816]
[1747888592706,53.80328952,176.56,176.52,14.25176816]
[1747888592995,14.25176816,176.55,176.5,40.25176816]
[1747888593898,68.05505768,176.56,176.51,14.25176816]
[1747888594979,68.05505768,176.56,176.5,26.0]
[1747888594980,14.25176816,176.55,176.5,26.0]
[1747888595179,14.25176816,176.55,176.5,40.25176816]
[1747888596196,19.82553528,176.54,176.5,26.0]
[1747888596401,19.82553528,176.54,176.5,40.25176816]
[1747888596999,34.07730344,176.54,176.49,14.25176816]
[1747888597503,14.25176816,176.52,176.44,1.6069]
[1747888597805,33.98,176.51,176.47,14.25176816]
[1747888598207,5.66572237,176.5,176.47,14.25176816]
[1747888598893,5.66572237,176.5,176.48,14.25176816]
[1747888601104,5.66572237,176.5,176.46,26.0]
[1747888601403,5.66572237,176.5,176.48,14.25176816]
[1747888603400,5.66572237,176.5,176.49,14.25176816]
[1747888603602,5.66572237,176.5,176.46,26.0]
[1747888603802,5.66572237,176.5,176.49,14.25176816]
[1747888604722,5.66572237,176.5,176.47,14.25176816]
[1747888605819,19.83002831,176.5,176.43,26.0]
[1747888606031,19.83002831,176.5,176.46,14.25176816]
[1747888606919,19.83002831,176.5,176.47,14.25176816]
[1747888607810,19.83002831,176.5,176.48,14.25176816]
[1747888608133,19.83002831,176.5,176.47,14.25176816]
[1747888608724,19.83002831,176.5,176.48,14.25176816]
[1747888609225,5.66572237,176.5,176.48,14.25176816]
[1747888609623,5.66572237,176.5,176.44,26.0]
[1747888609815,5.66572237,176.5,176.48,14.25176816]
[1747888613245,5.66515397,176.52,176.49,14.25176816]
[1747888613417,5.66515397,176.52,176.51,14.25176816]
[1747888613736,39.66515397,176.52,176.51,14.25176816]
[1747888614035,34.0,176.52,176.51,14.25176816]
[1747888614211,44.95814137,176.58,176.51,14.25176816]
[1747888614543,44.95814137,176.58,176.57,14.25176816]
[1747888614713,3.99814137,176.58,176.57,14.25176816]
[1747888614919,5.66193454,176.62,176.57,14.25176816]
[1747888615121,34.0,176.61,176.59,14.25176816]
[1747888615326,34.0,176.61,176.58,14.25176816]
[1747888616435,34.0,176.61,176.57,14.25176816]
[1747888617554,5.66251415,176.6,176.57,14.25176816]
[1747888618047,5.66251415,176.6,176.56,14.25176816]
[1747888618656,19.91428231,176.6,176.53,1.5364]
[1747888618828,14.25176816,176.59,176.55,14.25176816]
[1747888619432,14.25176816,176.59,176.54,14.25176816]
[1747888619638,5.66315551,176.58,176.54,14.25176816]
[1747888619855,33.98,176.57,176.54,14.25176816]
[1747888620539,33.98,176.57,176.52,14.25176816]
[1747888620540,48.23176816,176.57,176.52,14.25176816]
[1747888620733,14.25176816,176.55,176.5,14.25176816]
[1747888620944,14.25176816,176.55,176.49,14.25176816]
[1747888621143,14.25176816,176.55,176.5,26.0]
[1747888621349,18.79181043,176.56,176.48,14.25176816]
[1747888621559,5.66411781,176.55,176.51,14.25176816]
[1747888622022,5.66411781,176.55,176.52,14.25176816]
[1747888622546,39.64381132,176.56,176.53,14.25176816]
[1747888622748,39.64381132,176.56,176.52,14.25176816]
[1747888623239,5.66381132,176.56,176.52,14.25176816]
[1747888623443,39.64381132,176.56,176.52,14.25176816]
[1747888624833,39.64381132,176.56,176.53,14.25176816]
[1747888625563,39.64381132,176.56,176.52,14.25176816]
[1747888625963,39.64381132,176.56,176.51,14.25176816]
[1747888626733,53.89557948,176.56,176.49,26.0]
[1747888626938,53.89557948,176.56,176.51,14.25176816]
[1747888627339,19.91557948,176.56,176.51,14.25176816]
[1747888627657,33.98,176.55,176.51,14.25176816]
[1747888627865,48.23176816,176.55,176.5,14.25176816]
[1747888628046,14.25176816,176.54,176.49,40.25176816]
[1747888628246,5.66475953,176.53,176.49,40.25176816]
[1747888628459,5.66475953,176.53,176.48,14.25176816]
[1747888629543,14.25176816,176.53,176.48,14.25176816]
[1747888630057,14.25176816,176.51,176.45,1.5651]
[1747888630262,14.25176816,176.49,176.44,14.25176816]
[1747888630749,14.25176816,176.48,176.43,14.25176816]
[1747888630948,14.25176816,176.49,176.43,40.25176816]
[1747888631450,14.25176816,176.48,176.43,40.25176816]
[1747888631648,5.6660434,176.49,176.43,40.25176816]
[1747888631845,5.6660434,176.49,176.46,14.25176816]
[1747888632460,5.6660434,176.49,176.45,14.25176816]
[1747888632883,5.6660434,176.49,176.46,14.25176816]
[1747888633065,5.6660434,176.49,176.47,14.25176816]
[1747888633581,39.64575461,176.5,176.47,14.25176816]
[1747888633772,39.64575461,176.5,176.49,14.25176816]
[1747888633956,33.98,176.5,176.49,14.25176816]
[1747888634769,5.66506322,176.53,176.49,14.25176816]
[1747888634952,39.66506322,176.53,176.5,14.25176816]
[1747888635563,39.66506322,176.53,176.49,14.25176816]
[1747888637581,39.66506322,176.53,176.51,14.25176816]
[1747888639773,5.6638245,176.56,176.52,14.25176816]
[1747888640084,142.5635644,176.57,176.52,14.25176816]
[1747888640259,156.81533256,176.57,176.52,14.25176816]
[1747888640668,14.25176816,176.56,176.51,40.25176816]
[1747888641062,142.5635644,176.57,176.52,14.25176816]
[1747888641275,156.81533256,176.57,176.52,14.25176816]
[1747888641474,142.5635644,176.57,176.52,14.25176816]
[1747888641679,156.81533256,176.57,176.52,14.25176816]
[1747888642061,142.5635644,176.57,176.53,14.25176816]
[1747888642884,136.9,176.57,176.51,31.66535664]
[1747888643181,170.9,176.57,176.55,14.25176816]
[1747888643381,39.66362215,176.57,176.54,40.25176816]
[1747888643563,39.66362215,176.57,176.53,14.25176816]
[1747888648499,53.91539031,176.57,176.52,14.25176816]
[1747888649386,39.66362215,176.57,176.53,14.25176816]
[1747888650784,39.66362215,176.57,176.48,26.0]
[1747888650785,39.66362215,176.57,176.54,14.25176816]
[1747888651104,33.98,176.58,176.55,14.25176816]
[1747888651398,33.98,176.59,176.57,14.25176816]
[1747888651694,33.98,176.59,176.56,14.25176816]
[1747888652910,53.89468527,176.59,176.55,26.0]
[1747888654097,14.25176816,176.57,176.52,26.0]
[1747888654402,14.25176816,176.58,176.53,14.25176816]
[1747888654602,14.25176816,176.57,176.52,14.25176816]
[1747888654800,53.80000414,176.59,176.52,14.25176816]
[1747888654998,14.25176816,176.57,176.52,14.25176816]
[1747888657017,5.663797,176.56,176.52,14.25176816]
[1747888657212,5.663797,176.56,176.53,14.25176816]
[1747888657391,5.663797,176.56,176.51,26.0]
[1747888657598,5.663797,176.56,176.53,14.25176816]
[1747888658413,5.663797,176.56,176.52,14.25176816]
[1747888658812,5.663797,176.56,176.52,40.25176816]
[1747888659310,5.66347624,176.57,176.52,40.25176816]
[1747888659816,5.66347624,176.57,176.52,26.0]
[1747888660118,19.9152444,176.57,176.52,40.25176816]
[1747888662023,19.91492367,176.58,176.53,14.25176816]
[1747888662199,5.66315551,176.58,176.53,14.25176816]
[1747888662392,19.91492367,176.58,176.53,14.25176816]
[1747888663015,19.91492367,176.58,176.52,40.25176816]
[1747888663226,5.66315551,176.58,176.53,14.25176816]
[1747888663414,19.91492367,176.58,176.53,14.25176816]
[1747888663719,14.25176816,176.57,176.52,40.25176816]
[1747888664299,14.25176816,176.56,176.52,26.0]
[1747888664501,14.25176816,176.54,176.52,26.0]
[1747888664798,33.98,176.55,176.52,26.0]
[1747888665300,5.66443865,176.54,176.52,26.0]
[1747888667795,5.66443865,176.54,176.5,26.0]
[1747888668001,5.66443865,176.54,176.51,26.0]
[1747888670625,5.66443865,176.54,176.49,41.88256816]
[1747888671428,33.98,176.55,176.53,14.25176816]
[1747888671926,33.98,176.55,176.52,14.25176816]
[1747888672618,39.64422725,176.55,176.52,14.25176816]
[1747888672807,39.64422725,176.55,176.51,14.25176816]
[1747888673002,53.89599541,176.55,176.51,26.0]
[1747888676335,14.25176816,176.53,176.47,14.25176816]
[1747888676529,14.25176816,176.53,176.47,40.25176816]
[1747888676839,14.25176816,176.5,176.45,14.25176816]
[1747888677045,33.98,176.49,176.45,14.25176816]
[1747888677226,33.98,176.49,176.44,41.87806816]
[1747888677537,33.98,176.49,176.45,14.25176816]
[1747888678334,5.66636446,176.48,176.44,14.25176816]
[1747888681633,5.66636446,176.48,176.45,14.25176816]
[1747888681816,33.98,176.49,176.47,14.25176816]
[1747888682015,74.66,176.52,176.48,14.25176816]
[1747888682243,34.0,176.54,176.51,14.25176816]
[1747888682442,34.0,176.54,176.52,14.25176816]
[1747888684349,39.66472504,176.54,176.51,14.25176816]
[1747888688249,34.0,176.54,176.52,14.25176816]
[1747888688828,14.25176816,176.59,176.53,14.25176816]
[1747888689134,34.0,176.58,176.54,14.25176816]
[1747888689818,39.66315551,176.58,176.54,14.25176816]
[1747888690433,34.0,176.57,176.55,14.25176816]
[1747888690951,34.0,176.58,176.56,14.25176816]
[1747888691131,34.0,176.59,176.56,14.25176816]
[1747888692060,39.66313987,176.59,176.56,14.25176816]
[1747888692233,46.32257285,176.6,176.56,14.25176816]
[1747888692433,40.66,176.6,176.58,14.25176816]
[1747888692672,39.6422714,176.61,176.57,14.25176816]
[1747888692834,53.89403956,176.61,176.54,1.589]
[1747888693029,14.25176816,176.59,176.54,15.84076816]
[1747888693236,14.25176816,176.57,176.52,14.25176816]
[1747888693434,33.98,176.57,176.52,14.25176816]
[1747888693662,33.98,176.57,176.53,14.25176816]
[1747888693933,33.98,176.57,176.54,14.25176816]
[1747888694455,5.663797,176.56,176.53,14.25176816]
[1747888694660,5.663797,176.56,176.5,1.589]
[1747888694959,19.91556516,176.56,176.51,14.25176816]
[1747888696261,19.91556516,176.56,176.51,40.25176816]
[1747888697865,5.663797,176.56,176.52,14.25176816]
[1747888698162,19.91556516,176.56,176.51,14.25176816]
[1747888702764,34.07505768,176.56,176.51,14.25176816]
[1747888703763,14.25176816,176.55,176.5,40.25176816]
[1747888704471,34.07505768,176.56,176.5,40.25176816]
[1747888704978,34.07505768,176.56,176.51,14.25176816]
[1747888710586,19.82328952,176.56,176.51,14.25176816]
[1747888712983,33.98,176.55,176.51,14.25176816]
[1747888714474,5.66443865,176.54,176.52,14.25176816]
[1747888714787,5.66443865,176.54,176.53,14.25176816]
[1747888716291,14.15949252,176.56,176.53,14.25176816]
[1747888716490,33.98,176.57,176.54,14.25176816]
[1747888716868,33.98,176.57,176.53,14.25176816]
[1747888718105,5.663797,176.56,176.53,14.25176816]
[1747888718703,5.663797,176.56,176.51,26.0]
[1747888718895,5.663797,176.56,176.53,14.25176816]
[1747888720302,5.66347624,176.57,176.53,14.25176816]
[1747888721008,19.82216684,176.57,176.5,26.0]
[1747888721188,14.25176816,176.56,176.5,40.25176816]
[1747888721605,14.25176816,176.56,176.51,14.25176816]
[1747888721812,34.073935,176.57,176.51,14.25176816]
[1747888722610,34.073935,176.57,176.52,14.25176816]
[1747888723407,19.82216684,176.57,176.52,14.25176816]
[1747888723614,5.66347624,176.57,176.51,26.0]
[1747888723811,5.66347624,176.57,176.53,14.25176816]
[1747888725186,5.66347624,176.57,176.52,14.25176816]
[1747888726110,34.073935,176.57,176.51,40.25176816]
[1747888726510,14.25176816,176.56,176.51,26.0]
[1747888728209,19.82441234,176.55,176.5,40.25176816]
[1747888728817,33.98,176.54,176.49,14.25176816]
[1747888729729,48.23176816,176.54,176.48,26.0]
[1747888730015,48.23176816,176.54,176.48,40.25176816]
[1747888730315,5.66475953,176.53,176.48,40.25176816]
[1747888731112,5.66475953,176.53,176.49,14.25176816]
[1747888733907,14.25176816,176.55,176.47,1.5324]
[1747888734213,14.25176816,176.54,176.48,26.0]
[1747888734414,14.25176816,176.52,176.47,1.5324]
[1747888734616,14.25176816,176.52,176.46,14.25176816]
[1747888735821,5.66540139,176.51,176.46,14.25176816]
[1747888737926,14.25176816,176.52,176.46,14.25176816]
[1747888738619,14.25176816,176.5,176.45,40.25176816]
[1747888738918,48.25176816,176.5,176.45,40.25176816]
[1747888739328,14.25176816,176.46,176.42,14.75379991]
[1747888739495,20.16314886,176.51,176.42,14.75379991]
[1747888739496,14.25176816,176.44,176.42,14.75379991]
[1747888739693,34.0,176.43,176.38,14.25176816]
[1747888739896,34.0,176.43,176.39,14.25176816]
[1747888740299,34.0,176.43,176.4,14.25176816]
[1747888742625,39.66810193,176.43,176.39,14.25176816]
[1747888742806,39.66810193,176.43,176.38,14.25176816]
[1747888743013,53.91987009,176.43,176.38,14.25176816]
[1747888743527,34.0,176.43,176.4,14.25176816]
[1747888743826,39.66797029,176.43,176.39,14.25176816]
[1747888744126,2.77451442,176.47,176.42,14.25176816]
[1747888744315,34.0,176.43,176.42,14.25176816]
[1747888744620,74.46,176.46,176.42,14.25176816]
[1747888744944,74.46,176.46,176.44,14.25176816]
[1747888745105,34.0,176.47,176.45,14.25176816]
[1747888746237,34.0,176.47,176.46,14.25176816]
[1747888747214,23.59956301,176.52,176.46,14.25176816]
[1747888747432,23.59956301,176.52,176.5,14.25176816]
[1747888747634,23.59956301,176.52,176.51,14.25176816]
[1747888749635,34.0,176.55,176.51,14.25176816]
[1747888749834,39.66412416,176.55,176.52,14.25176816]
[1747888750336,39.66412416,176.55,176.51,14.25176816]
[1747888751113,14.25176816,176.54,176.46,10.72172634]
[1747888751314,39.66412416,176.55,176.47,40.25176816]
[1747888751315,14.25176816,176.52,176.47,40.25176816]
[1747888751629,14.25176816,176.54,176.49,14.25176816]
[1747888752440,14.25176816,176.53,176.48,14.25176816]
[1747888752618,14.25176816,176.52,176.47,26.0]
[1747888752939,14.25176816,176.53,176.48,14.25176816]
[1747888753137,5.66508044,176.52,176.48,14.25176816]
[1747888753439,5.66443865,176.54,176.5,14.25176816]
[1747888753816,34.0,176.55,176.52,14.25176816]
[1747888754018,34.0,176.55,176.53,14.25176816]
[1747888754341,34.0,176.55,176.52,14.25176816]
[1747888754835,39.6642058,176.55,176.52,14.25176816]
[1747888755139,39.6642058,176.55,176.51,14.25176816]
[1747888755314,39.6642058,176.55,176.5,14.25176816]
[1747888756640,53.91597396,176.55,176.5,14.25176816]
[1747888756820,14.25176816,176.54,176.49,14.25176816]
[1747888757017,14.25176816,176.54,176.47,26.0]
[1747888757229,14.25176816,176.54,176.49,14.25176816]
[1747888757542,53.91597396,176.55,176.49,14.25176816]
[1747888757912,53.91597396,176.55,176.5,14.25176816]
[1747888758118,39.6642058,176.55,176.5,14.25176816]
[1747888758639,53.91597396,176.55,176.5,14.25176816]
[1747888759042,14.25176816,176.54,176.49,14.25176816]
[1747888759943,53.91597396,176.55,176.49,14.25176816]
[1747888760824,53.91597396,176.55,176.5,14.25176816]
[1747888761237,39.6642058,176.55,176.5,14.25176816]
[1747888761451,5.66386568,176.56,176.53,14.25176816]
[1747888762540,39.66386568,176.56,176.53,14.25176816]
[1747888763524,5.66386568,176.56,176.53,14.25176816]
[1747888763920,5.66386568,176.56,176.52,14.25176816]
[1747888764125,5.66386568,176.56,176.51,14.25176816]
[1747888766330,14.25176816,176.55,176.5,40.25176816]
[1747888766534,14.25176816,176.55,176.5,26.0]
[1747888766742,5.66386568,176.56,176.53,14.25176816]
[1747888768833,5.66386568,176.56,176.52,14.25176816]
[1747888769240,5.66386568,176.56,176.49,26.0]
[1747888769531,14.25176816,176.55,176.49,40.25176816]
[1747888769921,14.25176816,176.55,176.46,10.13229025]